bitfinex/quotes_ETHUSD_20260227
["timestamp","ask_amount","ask_price","bid_price","bid_amount"]
[1772224740664,0.87420583,1924.5,1924.3,0.0011]
[1772224742034,0.87365583,1924.3,1924.0,0.00263886]
[1772224742286,1.29898473,1924.6,1923.5,5.19871785]
[1772224742287,0.87365583,1924.0,1923.5,5.19871785]
[1772224742436,0.87365583,1924.0,1923.5,5.26276516]
[1772224743464,0.87365583,1924.0,1923.6,0.06212205]
[1772224743958,2.77665583,1924.2,1923.8,0.06132635]
[1772224744168,2.77665583,1924.2,1923.5,5.19981785]
[1772224744169,0.87365583,1924.2,1923.9,0.55360952]
[1772224744470,0.87365583,1924.2,1923.9,0.55250952]
[1772224744786,0.87365583,1924.4,1924.1,1.29930876]
[1772224745538,1.902,1924.5,1924.2,0.0011]
[1772224745857,0.87365583,1924.6,1924.2,0.0011]
[1772224746189,0.87365583,1924.6,1924.3,0.0011]
[1772224746348,0.87365583,1924.6,1924.2,0.0011]
[1772224746875,0.87365583,1924.6,1924.1,1.35983094]
[1772224747167,0.87365583,1924.6,1924.2,0.06004286]
[1772224747474,2.17263358,1924.6,1924.2,0.06004286]
[1772224747799,2.17263358,1924.6,1924.2,0.0011]
[1772224747800,0.87365583,1924.5,1924.2,0.0011]
[1772224748760,0.87365583,1924.5,1924.3,0.0011]
[1772224748960,0.87365583,1924.4,1923.9,5.25504828]
[1772224749185,0.87365583,1924.4,1924.0,0.0011]
[1772224749363,0.87365583,1924.4,1924.0,0.05849848]
[1772224750680,0.87365583,1924.6,1924.1,0.0011]
[1772224750878,0.87365583,1924.6,1924.1,0.05627234]
[1772224751464,0.87365583,1924.6,1924.2,1.35551358]
[1772224751761,0.87365583,1924.5,1924.1,0.0011]
[1772224753683,0.87365583,1924.4,1924.1,0.0011]
[1772224754782,0.87365583,1924.4,1924.0,1.29937431]
[1772224754985,0.87365583,1924.4,1924.1,0.0011]
[1772224755488,0.87365583,1924.4,1924.1,0.05230237]
[1772224755693,0.87365583,1924.4,1924.2,0.0011]
[1772224756477,0.87365583,1924.4,1924.1,0.05230237]
[1772224756685,0.87365583,1924.4,1924.2,0.0011]
[1772224756878,0.001,1924.5,1924.2,0.05201157]
[1772224757761,0.87465583,1924.5,1924.2,0.05201157]
[1772224758873,0.87465583,1924.5,1924.2,1.35124968]
[1772224759194,0.001,1924.5,1924.3,0.05064834]
[1772224759982,0.001,1924.5,1924.4,0.0011]
[1772224763000,0.001,1924.7,1924.4,0.04801803]
[1772224763201,0.001,1924.7,1924.5,0.04801803]
[1772224763382,0.001,1924.7,1924.5,0.04691803]
[1772224763992,0.001,1924.7,1924.6,0.0011]
[1772224764304,0.001,1924.7,1924.6,0.00011256]
[1772224765806,0.87465583,1924.7,1924.6,0.00011256]
[1772224769005,0.87465583,1924.7,1924.4,1.34407449]
[1772224769696,0.87465583,1924.7,1924.4,0.04501724]
[1772224769994,0.87465583,1924.7,1924.4,1.34411789]
[1772224770199,0.87465583,1924.7,1924.4,0.04501724]
[1772224770397,0.87365583,1924.6,1924.1,1.30039789]
[1772224770707,0.87365583,1924.6,1924.1,1.34299902]
[1772224770909,0.87365583,1924.5,1924.1,1.34299902]
[1772224773007,0.87365583,1924.5,1924.2,0.03780112]
[1772224775104,0.87365583,1924.5,1924.3,1.29917372]
[1772224775308,0.87365583,1924.6,1924.3,1.29917372]
[1772224776806,0.87365583,1924.6,1924.2,5.23474571]
[1772224777013,0.87365583,1924.6,1924.2,1.33704236]
[1772224778130,0.87365583,1924.5,1924.1,1.32811318]
[1772224778330,0.84190184,1924.4,1924.0,0.0011]
[1772224778687,0.84190184,1924.4,1924.3,0.0011]
[1772224779008,0.84190184,1924.4,1924.3,0.00011254]
[1772224780102,0.87107863,1924.3,1924.0,0.0011]
[1772224781000,0.87107863,1924.1,1923.8,0.0011]
[1772224781246,0.87107863,1924.1,1923.9,0.00121254]
[1772224783118,0.87107863,1924.0,1923.9,0.00121254]
[1772224786415,0.87107863,1924.0,1923.8,0.0011]
[1772224786608,0.87107863,1924.0,1923.9,0.00121254]
[1772224786794,0.87107863,1924.3,1923.9,0.83072956]
[1772224786996,1.899,1924.5,1923.9,0.83072956]
[1772224786997,0.87107863,1924.4,1923.9,0.83072956]
[1772224788419,1.899,1924.5,1924.1,0.82951702]
[1772224788741,3.19803921,1924.5,1924.1,0.82951702]
[1772224789213,4.06911784,1924.5,1924.1,0.82951702]
[1772224791405,1.899,1924.5,1924.3,0.82951702]
[1772224791606,0.001,1924.4,1924.3,0.82951702]
[1772224794617,0.001,1924.4,1924.3,2.12869074]
[1772224795024,1.905,1924.7,1924.4,0.82951702]
[1772224795417,3.2039122,1924.7,1924.4,0.82951702]
[1772224795914,4.07499083,1924.7,1924.4,0.82951702]
[1772224800234,1.02936795,1924.7,1924.4,1.2991015]
[1772224800448,0.001,1924.9,1924.6,0.01484811]
[1772224800745,0.001,1924.9,1924.5,0.73715564]
[1772224800746,1.907,1925.2,1924.9,0.01484811]
[1772224802037,2.77807863,1925.2,1924.9,0.01484811]
[1772224802744,1.907,1925.2,1925.0,0.01398973]
[1772224803541,2.77807863,1925.2,1924.9,0.01398973]
[1772224803783,1.907,1925.2,1924.9,0.01398973]
[1772224804242,2.77807863,1925.2,1924.9,0.01398973]
[1772224805243,2.77807863,1925.2,1924.9,1.31275784]
[1772224805415,2.77807863,1925.2,1924.9,0.01398973]
[1772224806045,1.907,1925.2,1924.9,1.31191073]
[1772224806341,2.77807863,1925.2,1924.9,1.31191073]
[1772224807352,2.77807863,1925.2,1924.9,0.01314904]
[1772224807569,2.77807863,1925.2,1924.9,1.31191296]
[1772224807850,2.77807863,1925.2,1925.0,0.0128787]
[1772224807851,1.907,1925.2,1925.0,0.0128787]
[1772224808440,1.907,1925.2,1925.0,1.31157315]
[1772224809544,0.001,1925.3,1925.1,0.01233342]
[1772224809744,2.17040375,1925.6,1925.3,0.01206656]
[1772224809745,0.87207863,1925.6,1925.3,0.01206656]
[1772224810253,0.001,1925.6,1925.5,0.01180186]
[1772224810456,0.001,1925.9,1925.6,0.01180186]
[1772224810457,0.86772473,1925.9,1925.6,0.01180186]
[1772224811452,0.86772473,1925.9,1925.4,2.03553793]
[1772224811657,0.86772473,1925.9,1925.4,2.04708616]
[1772224811959,0.86772473,1925.9,1925.5,0.01129315]
[1772224812458,2.16582307,1925.9,1925.5,0.01129315]
[1772224812662,0.8723713,1925.8,1925.2,0.73715564]
[1772224812860,0.8723713,1925.5,1924.7,7.0784888]
[1772224813158,0.8723713,1925.4,1924.7,7.0784888]
[1772224814555,0.8723713,1925.3,1924.7,7.0784888]
[1772224814967,0.8723713,1925.3,1925.0,0.0011]
[1772224815668,0.8723713,1925.5,1925.0,0.0011]
[1772224815972,0.8723713,1925.7,1925.0,3.43969188]
[1772224816150,0.8723713,1925.7,1925.1,1.884]
[1772224816334,0.001,1925.8,1925.3,3.43859188]
[1772224816759,0.00153886,1926.0,1925.4,1.29843149]
[1772224817544,0.00153886,1926.0,1925.5,1.884]
[1772224818788,0.00153886,1926.0,1925.6,1.29829663]
[1772224820964,0.87391016,1926.0,1925.4,7.07963828]
[1772224821144,0.87391016,1926.0,1925.1,3.18463383]
[1772224822967,0.8723713,1925.9,1925.1,3.18463383]
[1772224824977,0.8723713,1925.9,1925.4,1.29843149]
[1772224827270,0.8723713,1925.9,1925.2,5.19386603]
[1772224827848,0.8723713,1925.9,1925.5,0.001]
[1772224828246,0.8743713,1925.9,1925.5,0.001]
[1772224834080,0.002,1925.9,1925.5,0.001]
[1772224834378,0.002,1925.9,1925.5,2.50754399]
[1772224834564,0.002,1925.9,1925.6,1.29829663]
[1772224837373,0.002,1925.9,1925.7,0.49080872]
[1772224837883,0.002,1925.9,1925.5,1.79017278]
[1772224837884,0.8743713,1925.9,1925.5,1.79017278]
[1772224838061,0.8743713,1925.9,1925.5,0.001]
[1772224838979,0.8723713,1925.8,1925.5,0.001]
[1772224841327,0.8723713,1925.8,1925.6,0.0011]
[1772224841693,0.8733713,1925.8,1925.6,0.0011]
[1772224843294,0.001,1925.8,1925.6,0.0011]
[1772224843497,0.001,1925.8,1925.6,1.29939663]
[1772224847674,0.002,1925.9,1925.6,1.79020535]
[1772224849000,0.00353886,1926.0,1925.8,0.49080872]
[1772224849303,0.8733713,1926.4,1925.8,0.49080872]
[1772224849499,0.8733713,1926.4,1926.1,1.78872755]
[1772224851397,0.8733713,1926.4,1926.1,1.29791883]
[1772224851581,0.8733713,1926.4,1925.9,1.29809439]
[1772224851779,0.8723713,1926.3,1925.9,1.29809439]
[1772224851974,0.8723713,1926.3,1925.9,3.19509439]
[1772224853583,0.001,1926.4,1925.9,3.19509439]
[1772224853786,0.8733713,1926.4,1925.9,3.19509439]
[1772224854402,0.001,1926.2,1925.9,3.19509439]
[1772224854578,0.001,1926.2,1925.9,3.19609439]
[1772224855794,0.8733713,1926.2,1925.9,1.29809439]
[1772224855990,0.8733713,1926.2,1925.9,3.19809439]
[1772224857798,0.001,1926.2,1925.9,3.19809439]
[1772224859914,0.8733713,1926.2,1925.9,3.19809439]
[1772224862118,0.8723713,1926.1,1925.7,1.29822921]
[1772224862324,0.8723713,1926.1,1925.6,0.0011]
[1772224862492,0.8723713,1926.1,1925.6,1.29936227]
[1772224865325,0.8723713,1925.9,1925.6,0.0011]
[1772224865619,0.8718213,1925.8,1925.5,0.001]
[1772224866623,0.8718213,1925.8,1925.7,0.0011]
[1772224867320,0.8718213,1925.7,1925.5,0.001]
[1772224867525,0.8718213,1925.6,1925.4,0.001]
[1772224867897,0.8718213,1925.6,1925.2,0.001]
[1772224868096,0.8718213,1925.5,1925.2,0.001]
[1772224869026,0.8718213,1925.5,1925.3,0.00111256]
[1772224869913,2.1702143,1925.5,1925.3,0.00111256]
[1772224870124,0.8718213,1925.4,1925.3,0.00111256]
[1772224870511,0.8718213,1925.4,1925.2,0.0021]
[1772224873233,0.87126502,1925.3,1925.2,0.0021]
[1772224876526,0.87126502,1925.3,1925.2,0.001]
[1772224876715,0.87126502,1925.7,1925.2,0.001]
[1772224876921,0.87126502,1925.7,1925.3,0.0011]
[1772224877324,0.87071502,1925.5,1925.2,0.001]
[1772224878615,0.87071502,1925.5,1925.3,0.001]
[1772224879922,0.87071502,1925.7,1925.3,0.001]
[1772224882535,2.16897743,1925.7,1925.3,0.001]
[1772224882740,0.87071502,1925.6,1925.3,0.001]
[1772224883128,0.87071502,1925.7,1925.3,0.001]
[1772224883331,0.87071502,1925.7,1925.3,0.49198776]
[1772224886057,0.83419513,1925.9,1925.6,0.09658849]
[1772224889227,0.83419513,1925.9,1925.6,1.39483672]
[1772224890556,0.001,1925.8,1925.6,1.39483672]
[1772224895438,0.001,1925.8,1925.6,1.39488453]
[1772224898337,0.001,1925.8,1925.6,0.09658849]
[1772224898544,0.83519513,1925.8,1925.4,0.0011]
[1772224900847,0.81783568,1925.7,1925.4,0.0011]
[1772224902447,0.81783568,1925.7,1925.5,0.001]
[1772224902840,0.81783568,1925.6,1925.5,0.001]
[1772224905671,0.81733568,1925.5,1925.4,0.0011]
[1772224906365,0.81733568,1925.5,1925.1,0.0011]
[1772224907673,0.81733568,1925.3,1925.1,0.0011]
[1772224908265,0.81733568,1925.1,1924.9,0.0011]
[1772224908566,0.81733568,1925.1,1924.7,0.0011]
[1772224910175,0.81733568,1924.9,1924.7,0.0011]
[1772224915485,0.81733568,1924.9,1924.8,0.0011]
[1772224917178,0.001,1925.0,1924.8,0.07289594]
[1772224918280,5.19411864,1925.3,1925.0,0.07105043]
[1772224918281,0.81733568,1925.3,1925.0,0.07105043]
[1772224918458,0.81733568,1925.4,1925.0,0.07105043]
[1772224918782,0.81733568,1925.5,1925.1,0.80734118]
[1772224918979,0.81733568,1925.5,1925.1,0.07105043]
[1772224919362,2.11761773,1925.7,1925.1,0.07105043]
[1772224919685,0.81733568,1925.6,1925.1,0.07105043]
[1772224920296,0.81733568,1925.6,1925.2,0.06958683]
[1772224920586,2.115634,1925.6,1925.2,0.06958683]
[1772224920907,0.81733568,1925.5,1925.2,0.06958683]
[1772224921057,0.81733568,1925.5,1925.0,0.06887168]
[1772224922087,0.81733568,1925.4,1924.8,0.0011]
[1772224922301,0.81733568,1925.2,1924.8,0.0011]
[1772224922586,0.81733568,1925.2,1924.8,0.0692591]
[1772224922956,0.81733568,1925.4,1925.0,0.06745687]
[1772224923190,1.896,1925.5,1925.0,0.06745687]
[1772224923486,1.896,1925.5,1925.2,0.06745687]
[1772224925560,1.896,1925.5,1925.2,1.36600538]
[1772224925984,1.896,1925.5,1925.2,0.06745687]
[1772224927281,2.71333568,1925.5,1925.2,0.06745687]
[1772224927488,4.0117006,1925.5,1925.2,0.06745687]
[1772224927689,2.71333568,1925.5,1925.1,1.29862997]
[1772224927887,2.71333568,1925.5,1925.1,1.36271233]
[1772224928187,2.71333568,1925.5,1925.1,1.36381233]
[1772224928399,0.001,1925.4,1925.1,1.36381233]
[1772224931419,0.001,1925.4,1925.2,0.06151826]
[1772224933393,0.001,1925.4,1925.2,1.36002968]
[1772224934990,0.001,1925.4,1925.2,0.06151826]
[1772224935174,0.001,1925.4,1925.2,1.3600821]
[1772224935691,0.001,1925.4,1925.1,1.35876972]
[1772224935878,0.81833568,1925.4,1925.1,0.0011]
[1772224938170,0.81833568,1925.4,1925.1,1.29973111]
[1772224938596,0.81833568,1925.4,1925.1,1.35701832]
[1772224938793,0.001,1925.4,1925.2,0.05670883]
[1772224940168,0.001,1925.4,1925.2,1.35524672]
[1772224940899,0.001,1925.4,1925.2,0.05670883]
[1772224942504,0.001,1925.4,1925.2,1.35525952]
[1772224943521,0.002,1925.7,1925.4,0.82677832]
[1772224943871,0.77480333,1925.7,1925.4,0.82677832]
[1772224944812,0.77480333,1925.7,1925.4,2.12520653]
[1772224946490,0.77480333,1925.7,1925.4,0.82677832]
[1772224947178,0.77280333,1925.6,1925.1,0.82787832]
[1772224947380,0.77280333,1925.6,1925.1,0.0011]
[1772224947570,0.77280333,1925.5,1925.1,0.0011]
[1772224947775,0.77280333,1925.4,1925.0,0.0011]
[1772224948421,0.77280333,1925.4,1924.8,0.0011]
[1772224949210,0.77280333,1924.9,1924.8,0.0011]
[1772224949407,0.77280333,1924.8,1924.7,0.0011]
[1772224951107,1.29890372,1924.7,1924.5,0.0011]
[1772224951408,0.77280333,1924.6,1924.5,0.0011]
[1772224951804,0.77280333,1924.5,1924.1,0.0011]
[1772224953506,0.77280333,1924.4,1924.1,0.0011]
[1772224954494,0.77280333,1924.5,1924.1,0.82787832]
[1772224955386,0.77280333,1924.5,1924.1,2.12716968]
[1772224956003,0.77280333,1924.5,1924.1,2.12718455]
[1772224957023,0.77280333,1924.4,1924.0,0.00263886]
[1772224957506,2.07197705,1924.3,1924.0,0.00263886]
[1772224958080,0.77280333,1924.3,1924.0,0.00263886]
[1772224961221,2.07197711,1924.3,1924.0,0.00263886]
[1772224961449,0.83580594,1924.2,1923.8,0.0011]
[1772224961588,0.83580594,1924.1,1923.8,0.0011]
[1772224961913,0.83580594,1923.9,1923.5,2.13380442]
[1772224962289,2.1351158,1924.1,1923.6,0.83413145]
[1772224962594,0.83580594,1924.0,1923.6,0.83413145]
[1772224963105,0.83580594,1924.0,1923.4,0.83413145]
[1772224963314,4.03308927,1924.2,1923.9,0.0011]
[1772224963499,0.83580594,1924.1,1923.9,0.0011]
[1772224963910,0.83580594,1924.3,1923.9,0.0011]
[1772224964117,2.73380594,1924.3,1923.9,0.83523145]
[1772224964305,2.73380594,1924.3,1923.9,0.0011]
[1772224964306,0.83580594,1924.2,1923.9,0.0011]
[1772224966441,0.83580594,1924.1,1923.9,0.0011]
[1772224966726,0.001,1924.4,1923.9,0.83523145]
[1772224968327,0.001,1924.4,1924.1,0.83413145]
[1772224968626,2.13461578,1924.9,1924.3,0.83413145]
[1772224969135,0.83580594,1924.8,1924.3,0.83413145]
[1772224969814,0.83580594,1924.8,1924.1,2.13338875]
[1772224970833,0.83580594,1924.6,1924.1,2.13338875]
[1772224972734,1.29890372,1924.7,1924.2,0.83413145]
[1772224972931,0.8373448,1925.0,1924.4,0.83413145]
[1772224975524,2.13607601,1925.0,1924.5,2.13317016]
[1772224975837,0.001,1924.8,1924.5,2.13317016]
[1772224979142,0.001,1924.8,1924.6,0.83413145]
[1772224980713,0.00153886,1925.0,1924.7,0.83413145]
[1772224980919,0.83580594,1925.2,1924.8,2.45854617]
[1772224981116,0.83580594,1925.2,1924.8,3.29267762]
[1772224981427,0.83580594,1925.2,1924.9,2.13290021]
[1772224981942,1.29838661,1925.5,1925.0,0.83413145]
[1772224982315,2.13419255,1925.5,1925.0,0.83413145]
[1772224982648,2.13608296,1925.7,1925.0,3.29267762]
[1772224982863,2.13608296,1925.7,1925.1,0.83413145]
[1772224983155,2.13608296,1925.7,1925.1,0.11614397]
[1772224983317,2.13608296,1925.7,1925.2,0.14736883]
[1772224983515,0.83780594,1925.7,1925.2,0.14736883]
[1772224983746,0.83780594,1925.7,1925.4,0.14736883]
[1772224983747,0.002,1925.7,1925.4,0.14736883]
[1772224984044,0.001,1925.8,1925.4,0.14772102]
[1772224986448,0.001,1925.8,1925.2,1.44693835]
[1772224986449,0.83680594,1925.8,1925.2,1.44693835]
[1772224987741,0.83680594,1925.8,1925.4,0.001]
[1772224987946,0.83780594,1925.7,1925.4,0.001]
[1772224988845,0.002,1925.7,1925.4,0.001]
[1772224989620,0.83780594,1925.7,1925.4,0.001]
[1772224992747,0.002,1925.7,1925.4,0.15176718]
[1772224992946,0.002,1925.7,1925.4,1.45019618]
[1772224994429,0.002,1925.7,1925.4,0.15176718]
[1772224995045,0.002,1925.7,1925.4,1.45019319]
[1772224996849,0.002,1925.7,1925.5,0.15233907]
[1772224997160,0.001,1925.8,1925.6,1.4506357]
[1772224997347,0.001,1925.8,1925.7,0.15033907]
[1772224997947,0.00353886,1926.0,1925.7,0.15033907]
[1772224998332,0.82848802,1925.9,1925.4,1.45006999]
[1772224998736,0.82848802,1925.9,1925.5,0.1506385]
[1772224999051,0.00353886,1926.0,1925.7,0.15092279]
[1772225000044,0.001,1925.9,1925.7,0.15092279]
[1772225002358,0.001,1925.9,1925.8,1.44996349]
[1772225004547,0.001,1926.1,1925.9,0.15236412]
[1772225006573,0.82848802,1926.3,1926.0,1.29802699]
[1772225006574,0.7396958,1926.3,1926.0,1.29802699]
[1772225006740,0.7406958,1926.4,1926.0,2.11019847]
[1772225007570,2.03845458,1926.4,1926.0,0.81217148]
[1772225008568,0.7406958,1926.4,1926.0,0.81217148]
[1772225008865,0.74613968,1926.3,1925.8,0.81217148]
[1772225009049,0.74613968,1926.3,1925.8,2.11032138]
[1772225009840,0.74613968,1926.3,1925.9,0.81217148]
[1772225010340,0.001,1926.4,1925.9,0.81217148]
[1772225010534,0.74823918,1926.3,1925.6,7.09708714]
[1772225010739,0.74823918,1926.3,1925.7,0.81217148]
[1772225010967,0.7498147,1926.1,1925.7,0.81217148]
[1772225012440,2.6348147,1926.1,1925.6,0.0011]
[1772225012668,0.7513724,1926.0,1925.6,0.0011]
[1772225012967,0.75290965,1925.8,1925.6,0.0011]
[1772225013266,2.05100404,1925.9,1925.6,0.0011]
[1772225013765,0.75290965,1925.8,1925.6,0.0011]
[1772225014340,5.19213355,1926.0,1925.6,0.0011]
[1772225014341,0.75443233,1926.0,1925.6,0.81327148]
[1772225014538,0.75443233,1925.9,1925.6,0.0011]
[1772225015044,2.05255196,1925.9,1925.6,0.0011]
[1772225015746,2.05406736,1925.9,1925.6,0.0011]
[1772225016362,0.75594773,1925.9,1925.6,0.81327148]
[1772225016558,2.64243629,1926.1,1925.6,0.81327148]
[1772225016871,3.94042534,1926.1,1925.6,0.81327148]
[1772225019544,1.885,1926.1,1925.7,0.81217148]
[1772225019750,0.001,1926.2,1925.7,0.81217148]
[1772225022056,0.001,1926.2,1925.8,1.2981618]
[1772225022270,0.001,1926.2,1925.9,0.77932366]
[1772225023068,0.77109018,1926.2,1925.7,2.07752045]
[1772225023262,0.77109018,1926.2,1925.8,0.77932366]
[1772225024064,0.001,1926.2,1925.8,0.77932366]
[1772225024482,0.001,1926.2,1925.9,0.77932366]
[1772225028159,0.001,1926.2,1925.9,0.77932366]
[1772225029180,0.77881548,1926.2,1925.9,0.77932366]
[1772225030552,0.78005351,1926.2,1925.9,0.77932366]
[1772225031683,0.78005351,1926.2,1925.8,0.77932366]
[1772225031684,0.78027704,1926.1,1925.8,0.77932366]
[1772225032981,0.78027704,1926.1,1925.7,0.001]
[1772225033359,2.08070536,1926.0,1925.7,0.001]
[1772225033786,0.78267837,1926.0,1925.7,0.78032366]
[1772225034583,0.78485846,1926.2,1925.7,0.78032366]
[1772225034789,2.08275083,1926.2,1925.8,0.77932366]
[1772225035085,0.001,1926.2,1925.8,0.77932366]
[1772225035392,0.001,1926.2,1926.0,0.77932366]
[1772225035790,0.78602544,1926.2,1925.9,0.77932366]
[1772225036510,0.78602544,1926.2,1925.9,0.78032366]
[1772225039593,0.001,1926.2,1925.9,2.07837394]
[1772225039788,0.001,1926.2,1926.0,0.77932366]
[1772225040799,0.001,1926.4,1926.2,0.77932366]
[1772225041502,2.08924679,1926.9,1926.4,0.77932366]
[1772225044595,1.29929864,1927.1,1926.8,0.77932366]
[1772225045097,0.79601209,1927.0,1926.4,0.77932366]
[1772225045280,0.79601209,1926.9,1926.2,0.77932366]
[1772225046799,0.79703278,1926.5,1926.0,0.00153886]
[1772225046980,0.79805245,1926.3,1926.0,0.00153886]
[1772225048900,2.09755793,1926.2,1926.0,0.00153886]
[1772225049701,0.79966571,1926.1,1925.7,0.001]
[1772225049901,0.79966571,1926.1,1925.4,0.001]
[1772225050397,0.79966571,1926.1,1925.3,0.001]
[1772225050973,0.87227192,1925.8,1925.3,0.001]
[1772225051188,2.40387015,1925.9,1925.3,0.001]
[1772225051189,0.87227192,1925.6,1925.3,0.001]
[1772225053404,2.17063598,1925.5,1925.3,0.001]
[1772225053603,0.87227192,1925.4,1925.1,0.001]
[1772225054212,0.87227192,1925.4,1924.4,0.80709718]
[1772225056294,0.87227192,1925.2,1924.5,0.80709718]
[1772225057014,2.75727192,1925.2,1924.5,0.80709718]
[1772225058815,1.29863383,1925.1,1924.6,0.80709718]
[1772225061022,1.29863383,1925.1,1924.7,0.80819718]
[1772225061518,2.17090575,1925.1,1924.7,0.80819718]
[1772225062299,0.87227192,1925.0,1924.7,0.0011]
[1772225062916,7.07942944,1925.2,1924.8,0.80709718]
[1772225063217,3.18356638,1925.2,1924.8,0.80709718]
[1772225063394,4.0558383,1925.2,1924.8,0.80709718]
[1772225064419,0.87227192,1925.1,1924.8,0.80709718]
[1772225064913,5.19399574,1925.6,1924.8,0.80709718]
[1772225064914,4.05864351,1925.5,1925.0,0.80709718]
[1772225065289,0.87227192,1925.4,1925.0,0.80709718]
[1772225065515,0.87227192,1925.4,1924.8,0.80709718]
[1772225065819,0.87227192,1925.4,1924.7,0.0011]
[1772225067005,0.87227192,1925.2,1924.7,0.0011]
[1772225067198,2.76027192,1925.1,1924.7,0.0011]
[1772225067713,1.888,1925.1,1924.7,0.80819718]
[1772225069214,1.888,1925.1,1924.9,0.80709718]
[1772225070629,2.1708405,1925.2,1924.7,1.29995945]
[1772225070999,2.1708405,1925.2,1924.7,2.10705663]
[1772225071199,0.87227192,1925.1,1924.7,0.80819718]
[1772225072405,0.87227192,1925.1,1924.7,0.0011]
[1772225073120,1.29870129,1925.0,1924.7,0.0011]
[1772225073310,2.17097321,1925.0,1924.7,0.0011]
[1772225073518,0.87227192,1924.9,1924.7,0.0011]
[1772225075305,1.29883624,1924.8,1924.7,0.0011]
[1772225077116,2.17108839,1924.9,1924.7,0.0011]
[1772225077310,0.87227192,1924.8,1924.5,0.0011]
[1772225079530,1.29881048,1924.9,1924.5,0.80819718]
[1772225079726,1.889,1925.0,1924.5,0.80819718]
[1772225080729,0.001,1925.0,1924.5,0.80819718]
[1772225081659,0.001,1925.0,1924.6,1.29897121]
[1772225081960,0.001,1925.0,1924.7,0.86703106]
[1772225082556,1.29859408,1925.2,1924.7,0.86703106]
[1772225083135,2.13959967,1925.3,1924.7,0.86703106]
[1772225083958,1.29846683,1925.4,1924.9,0.86703106]
[1772225084160,2.13952237,1925.4,1924.9,0.11588411]
[1772225085562,0.84105554,1925.3,1924.9,0.11588411]
[1772225085858,0.001,1925.0,1924.9,0.11588411]
[1772225087466,0.001,1925.0,1924.7,0.86703106]
[1772225087467,0.84205554,1925.0,1924.7,0.86703106]
[1772225087654,0.001,1925.0,1924.7,0.86703106]
[1772225089263,0.001,1925.0,1924.8,1.29883624]
[1772225089762,2.13945671,1925.5,1924.9,0.86703106]
[1772225091743,2.13945671,1925.5,1925.0,2.16573235]
[1772225091941,2.13945671,1925.5,1925.0,1.65986037]
[1772225092137,3.19131761,1925.6,1925.1,0.86703106]
[1772225092363,4.03237315,1925.6,1925.1,0.86703106]
[1772225092661,0.84105554,1925.5,1924.9,1.29871505]
[1772225092960,0.84105554,1925.5,1924.8,0.86703106]
[1772225093837,2.13948703,1925.4,1924.9,2.16579982]
[1772225094064,0.84105554,1925.4,1925.0,0.86703106]
[1772225097471,0.84205554,1925.4,1925.0,2.16568405]
[1772225098677,0.001,1925.4,1925.1,0.86703106]
[1772225099367,0.001,1925.4,1925.2,2.16559744]
[1772225101756,0.84105554,1925.9,1925.5,0.86703106]
[1772225101971,0.84105554,1925.9,1925.4,1.29843149]
[1772225102278,0.84105554,1925.9,1925.5,0.86703106]
[1772225102853,2.14062303,1926.0,1925.5,0.86703106]
[1772225103054,0.00153886,1926.0,1925.6,0.86703106]
[1772225103259,1.894,1926.1,1925.8,0.86703106]
[1772225103479,1.894,1926.1,1925.9,0.86703106]
[1772225103653,1.894,1926.1,1925.7,1.29819068]
[1772225103856,1.894,1926.1,1925.8,0.86703106]
[1772225104895,0.84105554,1926.0,1925.5,1.29829967]
[1772225105095,0.84105554,1926.0,1925.5,2.16533073]
[1772225105454,0.84105554,1926.0,1925.6,2.16529323]
[1772225106154,1.894,1926.1,1925.7,0.86703106]
[1772225106786,4.03303359,1926.1,1925.7,0.86703106]
[1772225107201,0.84105554,1926.0,1925.6,1.29829511]
[1772225107365,0.84105554,1926.0,1925.5,2.16534605]
[1772225107987,2.13888951,1926.3,1925.6,0.86703106]
[1772225108292,2.13888951,1926.3,1925.7,0.86703106]
[1772225109098,0.84105554,1926.5,1925.9,0.86703106]
[1772225109399,2.13861455,1926.7,1926.1,0.86703106]
[1772225109583,1.29755901,1926.7,1926.1,0.86703106]
[1772225109789,0.84105554,1926.6,1926.1,0.86703106]
[1772225110357,0.84105554,1926.6,1926.1,2.16493478]
[1772225110575,0.002,1926.3,1926.1,2.16493478]
[1772225112796,0.002,1926.3,1926.1,0.86703106]
[1772225112959,0.002,1926.3,1926.0,2.15572817]
[1772225113457,0.002,1926.3,1926.1,0.85774865]
[1772225113652,0.002,1926.3,1926.0,1.29797952]
[1772225113895,0.80504264,1926.3,1925.8,1.29812864]
[1772225114116,0.80504264,1926.3,1925.7,0.001]
[1772225114761,0.80304264,1926.1,1925.7,0.001]
[1772225114962,0.80304264,1926.0,1925.7,0.001]
[1772225115907,0.80304264,1926.0,1925.5,0.001]
[1772225116055,0.80304264,1926.0,1925.5,0.85874865]
[1772225117267,2.10107084,1926.0,1925.5,2.15705936]
[1772225118406,0.80304264,1925.9,1925.4,0.001]
[1772225119216,1.2981618,1925.8,1925.4,0.001]
[1772225119424,2.10120444,1925.8,1925.4,0.001]
[1772225119719,0.80304264,1925.8,1925.4,0.001]
[1772225122422,1.29818531,1925.8,1925.4,0.001]
[1772225122619,0.80304264,1925.7,1925.5,0.0011]
[1772225123213,1.29918531,1925.8,1925.5,0.0011]
[1772225123515,0.80404264,1925.8,1925.5,0.0011]
[1772225123694,2.10220525,1925.8,1925.5,0.0011]
[1772225125035,0.80404264,1925.8,1925.5,0.0011]
[1772225125319,0.001,1925.8,1925.5,0.0011]
[1772225126731,0.001,1925.8,1925.5,2.15721271]
[1772225126933,0.001,1925.8,1925.6,0.85774865]
[1772225127310,3.99596749,1926.2,1925.6,0.85774865]
[1772225127614,0.80304264,1926.1,1925.6,0.85774865]
[1772225128642,1.895,1926.2,1925.6,0.85774865]
[1772225128949,1.895,1926.2,1925.8,0.85774865]
[1772225129734,3.19289544,1926.2,1925.8,0.85774865]
[1772225130212,1.895,1926.2,1925.8,0.85774865]
[1772225130906,3.1929085,1926.2,1925.8,0.85774865]
[1772225131342,3.99595114,1926.2,1925.8,0.85774865]
[1772225131639,0.80304264,1926.1,1925.5,0.0011]
[1772225132713,0.80304264,1926.1,1925.5,2.15720249]
[1772225132932,2.10106921,1926.1,1925.6,0.85774865]
[1772225133110,5.99646987,1926.3,1925.6,0.85774865]
[1772225133315,3.99890372,1926.3,1925.6,0.85774865]
[1772225134014,0.80304264,1926.2,1925.6,0.85774865]
[1772225134232,0.80504264,1926.3,1925.6,0.85774865]
[1772225134553,0.80504264,1926.3,1925.8,0.85774865]